[Event "MČR v bleskovém šachu družstev 2019"]
[Site "Teplice, Czech Republic"]
[Date "2019.09.14"]
[Round "9.23"]
[White "Tresnak, Filip"]
[Black "Kupka, Frantisek"]
[Result "1-0"]
[TimeControl "3 mim. + 2 s"]
[WhiteFideId "333905"]
[BlackFideId "309540"]
[WhiteElo "1931"]
[BlackElo "2034"]

1. e4 {[%clk 00:03:00]} {[%emt 00:00:03]} d6 {[%clk 00:03:04]} {[%emt
00:00:02]} 2. d4 {[%clk 00:03:01]} {[%emt 00:00:02]} Nf6 {[%clk 00:03:05]}
{[%emt 00:00:01]} 3. Nc3 {[%clk 00:03:02]} {[%emt 00:00:01]} e5 {[%clk
00:03:06]} {[%emt 00:00:01]} 4. Nge2 {[%clk 00:03:00]} {[%emt 00:00:04]} Be7
{[%clk 00:03:05]} {[%emt 00:00:03]} 5. g3 {[%clk 00:03:01]} {[%emt 00:00:01]}
O-O {[%clk 00:03:02]} {[%emt 00:00:05]} 6. Bg2 {[%clk 00:03:01]} {[%emt
00:00:01]} c6 {[%clk 00:02:56]} {[%emt 00:00:09]} 7. O-O {[%clk 00:03:00]}
{[%emt 00:00:02]} a6 {[%clk 00:02:56]} {[%emt 00:00:03]} 8. a4 {[%clk
00:03:01]} {[%emt 00:00:02]} b6 {[%clk 00:02:48]} {[%emt 00:00:10]} 9. h3
{[%clk 00:02:59]} {[%emt 00:00:03]} c5 {[%clk 00:02:44]} {[%emt 00:00:06]} 10.
d5 {[%clk 00:02:54]} {[%emt 00:00:07]} Nbd7 {[%clk 00:02:37]} {[%emt 00:00:09]}
11. Be3 {[%clk 00:02:52]} {[%emt 00:00:04]} Ne8 {[%clk 00:02:36]} {[%emt
00:00:03]} 12. Nb1 {[%clk 00:02:29]} {[%emt 00:00:25]} Nc7 {[%clk 00:02:33]}
{[%emt 00:00:05]} 13. c4 {[%clk 00:02:29]} {[%emt 00:00:01]} b5 {[%clk
00:02:20]} {[%emt 00:00:15]} 14. axb5 {[%clk 00:02:27]} {[%emt 00:00:05]} axb5
{[%clk 00:02:21]} 15. Rxa8 Nxa8 {[%clk 00:02:22]} 16. cxb5 {[%clk 00:02:25]}
{[%emt 00:00:05]} Qa5 {[%clk 00:02:06]} {[%emt 00:00:17]} 17. Na3 {[%clk
00:02:21]} {[%emt 00:00:05]} Nc7 {[%clk 00:02:04]} {[%emt 00:00:05]} 18. Nc3
{[%clk 00:02:18]} {[%emt 00:00:05]} Re8 {[%clk 00:02:00]} {[%emt 00:00:05]} 19.
Qe2 {[%clk 00:01:57]} {[%emt 00:00:24]} Nb6 {[%clk 00:01:59]} {[%emt 00:00:03]}
20. Bd2 {[%clk 00:01:51]} {[%emt 00:00:08]} Bd7 {[%clk 00:01:52]} {[%emt
00:00:09]} 21. Ra1 {[%clk 00:01:43]} {[%emt 00:00:09]} Qa8 {[%clk 00:01:50]}
{[%emt 00:00:05]} 22. Ra2 {[%clk 00:01:42]} {[%emt 00:00:03]} Qb7 {[%clk
00:01:48]} {[%emt 00:00:04]} 23. f4 {[%clk 00:01:30]} {[%emt 00:00:14]} exf4
{[%clk 00:01:44]} {[%emt 00:00:06]} 24. gxf4 {[%clk 00:01:31]} {[%emt
00:00:01]} Bf6 {[%clk 00:01:42]} {[%emt 00:00:04]} 25. Qd3 {[%clk 00:01:24]}
{[%emt 00:00:09]} g6 {[%clk 00:01:32]} {[%emt 00:00:12]} 26. Ra1 {[%clk
00:01:13]} {[%emt 00:00:13]} Qb8 {[%clk 00:01:24]} {[%emt 00:00:10]} 27. Re1
{[%clk 00:01:01]} {[%emt 00:00:13]} h5 {[%clk 00:01:18]} {[%emt 00:00:08]} 28.
Nd1 {[%clk 00:00:56]} {[%emt 00:00:08]} Qa7 {[%clk 00:01:14]} {[%emt 00:00:06]}
29. Bc3 {[%clk 00:00:53]} {[%emt 00:00:05]} c4 {[%clk 00:01:01]} {[%emt
00:00:15]} 30. Qd2 {[%clk 00:00:28]} {[%emt 00:00:27]} Nbxd5+ {[%clk 00:00:55]}
{[%emt 00:00:08]} 31. Kh2 {[%clk 00:00:29]} Nxc3 {[%clk 00:00:47]} {[%emt
00:00:10]} 32. Nxc3 {[%clk 00:00:29]} {[%emt 00:00:02]} Qc5 {[%clk 00:00:38]}
{[%emt 00:00:11]} 33. e5 {[%clk 00:00:25]} {[%emt 00:00:06]} Bh4 {[%clk
00:00:36]} {[%emt 00:00:04]} 34. Rd1 {[%clk 00:00:21]} {[%emt 00:00:06]} d5
{[%clk 00:00:31]} {[%emt 00:00:07]} 35. Nxd5 {[%clk 00:00:19]} {[%emt
00:00:04]} Nxd5 {[%clk 00:00:21]} {[%emt 00:00:11]} 36. Qxd5 {[%clk 00:00:20]}
{[%emt 00:00:01]} Qxd5 37. Rxd5 {[%clk 00:00:21]} Be6 {[%clk 00:00:19]} 38. Rc5
{[%clk 00:00:20]} {[%emt 00:00:04]} Be7 {[%clk 00:00:19]} {[%emt 00:00:02]} 39.
Rxc4 {[%clk 00:00:15]} {[%emt 00:00:07]} Bxc4 40. Nxc4 {[%clk 00:00:16]} Rb8
{[%clk 00:00:19]} {[%emt 00:00:03]} 41. Bc6 {[%clk 00:00:14]} {[%emt 00:00:03]}
Kf8 {[%clk 00:00:19]} {[%emt 00:00:03]} 42. Kg3 {[%clk 00:00:13]} {[%emt
00:00:03]} Bc5 {[%clk 00:00:19]} {[%emt 00:00:01]} 43. Kf3 {[%clk 00:00:14]}
{[%emt 00:00:02]} Ke7 {[%clk 00:00:20]} 44. Ke4 {[%clk 00:00:14]} {[%emt
00:00:02]} f6 {[%clk 00:00:16]} {[%emt 00:00:06]} 45. Kd5 {[%clk 00:00:12]}
{[%emt 00:00:05]} Bb4 {[%clk 00:00:15]} {[%emt 00:00:02]} 46. e6 {[%clk
00:00:08]} {[%emt 00:00:06]} g5 {[%clk 00:00:12]} {[%emt 00:00:05]} 47. fxg5
{[%clk 00:00:08]} {[%emt 00:00:02]} fxg5 {[%clk 00:00:13]} 48. Ne5 {[%clk
00:00:09]} {[%emt 00:00:02]} Rd8+ {[%clk 00:00:09]} {[%emt 00:00:05]} 49. Bd7
{[%clk 00:00:10]} Kf8 {[%clk 00:00:07]} {[%emt 00:00:04]} 50. Nc6 {[%clk
00:00:10]} {[%emt 00:00:02]} Ra8 {[%clk 00:00:06]} {[%emt 00:00:03]} 51. Nxb4
{[%clk 00:00:11]} {[%emt 00:00:02]} g4 {[%clk 00:00:06]} {[%emt 00:00:01]} 52.
hxg4 hxg4 {[%clk 00:00:07]} 53. e7+ {[%clk 00:00:12]} {[%emt 00:00:01]} Kxe7
{[%clk 00:00:08]} {[%emt 00:00:01]} 54. Bxg4 {[%emt 00:00:03]} Kf6 {[%clk
00:00:09]} 55. Kc6 {[%clk 00:00:12]} {[%emt 00:00:03]} Kg5 {[%clk 00:00:09]}
{[%emt 00:00:01]} 56. Be2 {[%clk 00:00:12]} {[%emt 00:00:03]} Kf4 {[%clk
00:00:10]} {[%emt 00:00:01]} 57. b6 {[%clk 00:00:13]} {[%emt 00:00:01]} Ke3
{[%clk 00:00:10]} {[%emt 00:00:01]} 58. b7 {[%clk 00:00:14]} {[%emt 00:00:02]}
Rb8 {[%clk 00:00:11]} {[%emt 00:00:01]} 59. Bb5 {[%clk 00:00:14]} {[%emt
00:00:02]} Kd2 {[%clk 00:00:12]} {[%emt 00:00:01]} 60. b3 {[%clk 00:00:13]}
{[%emt 00:00:03]} Kc3 {[%clk 00:00:13]} 61. Bc4 {[%clk 00:00:14]} Kxb4 {[%clk
00:00:13]} {[%emt 00:00:02]} 62. Kc7 {[%clk 00:00:15]} Rh8 {[%clk 00:00:12]}
{[%emt 00:00:02]} 63. b8=Q+ {[%clk 00:00:16]} {[%emt 00:00:02]} Rxb8 {[%clk
00:00:13]} {[%emt 00:00:01]} 64. Kxb8 {[%clk 00:00:17]} Kc5 {[%clk 00:00:14]}
65. Kb7 {[%clk 00:00:17]} {[%emt 00:00:02]} Kb4 {[%clk 00:00:16]} 66. Kb6
{[%clk 00:00:18]} {[%emt 00:00:02]} Kc3 {[%clk 00:00:14]} {[%emt 00:00:03]} 67.
Kb5 {[%clk 00:00:19]} {[%emt 00:00:01]} Kd4 {[%clk 00:00:15]} 68. b4 {[%clk
00:00:20]} {[%emt 00:00:03]} Ke5 {[%clk 00:00:16]} {[%emt 00:00:01]} 69. Kc6
{[%clk 00:00:21]} 1-0

[Event "MČR v bleskovém šachu družstev 2019"]
[Site "Teplice, Czech Republic"]
[Date "2019.09.14"]
[Round "9.24"]
[White "Janocko, Petr"]
[Black "Prudek, Jiri"]
[Result "1-0"]
[TimeControl "3 mim. + 2 s"]
[WhiteFideId "320099"]
[BlackFideId "327310"]
[WhiteElo "2067"]
[BlackElo "1962"]

1. d4 {[%clk 00:03:02]} {[%emt 00:00:01]} Nf6 {[%clk 00:03:03]} {[%emt
00:00:01]} 2. c4 {[%clk 00:03:03]} {[%emt 00:00:01]} e6 {[%clk 00:03:02]}
{[%emt 00:00:03]} 3. Nf3 {[%clk 00:03:04]} {[%emt 00:00:01]} b6 {[%clk
00:02:59]} {[%emt 00:00:05]} 4. g3 {[%clk 00:03:05]} {[%emt 00:00:01]} Ba6
{[%clk 00:02:58]} {[%emt 00:00:03]} 5. Qc2 {[%clk 00:03:05]} {[%emt 00:00:02]}
b5 {[%clk 00:02:56]} {[%emt 00:00:03]} 6. Bg2 {[%clk 00:03:06]} {[%emt
00:00:02]} bxc4 {[%clk 00:02:51]} {[%emt 00:00:08]} 7. Ne5 {[%clk 00:03:02]}
{[%emt 00:00:06]} c6 {[%clk 00:02:46]} {[%emt 00:00:06]} 8. Nxc4 {[%clk
00:02:55]} {[%emt 00:00:09]} d5 {[%clk 00:02:44]} {[%emt 00:00:04]} 9. Ne5
{[%clk 00:02:51]} {[%emt 00:00:06]} Bb7 {[%clk 00:02:29]} {[%emt 00:00:16]} 10.
O-O {[%clk 00:02:51]} {[%emt 00:00:02]} Nfd7 {[%clk 00:02:24]} {[%emt
00:00:07]} 11. Bf4 {[%clk 00:02:49]} {[%emt 00:00:05]} f6 {[%clk 00:02:17]}
{[%emt 00:00:09]} 12. Nd3 {[%clk 00:02:43]} {[%emt 00:00:09]} g5 {[%clk
00:02:10]} {[%emt 00:00:08]} 13. Bd2 {[%clk 00:02:40]} {[%emt 00:00:05]} Qb6
{[%clk 00:01:56]} {[%emt 00:00:15]} 14. Bc3 {[%clk 00:02:36]} {[%emt 00:00:07]}
h5 {[%clk 00:01:54]} {[%emt 00:00:04]} 15. e4 {[%clk 00:02:37]} {[%emt
00:00:01]} h4 {[%clk 00:01:44]} {[%emt 00:00:12]} 16. exd5 {[%clk 00:02:37]}
{[%emt 00:00:02]} cxd5 {[%clk 00:01:32]} {[%emt 00:00:14]} 17. a4 {[%clk
00:02:15]} {[%emt 00:00:24]} a5 {[%clk 00:01:30]} {[%emt 00:00:04]} 18. Re1
{[%clk 00:02:11]} {[%emt 00:00:06]} Kf7 {[%clk 00:01:23]} {[%emt 00:00:09]} 19.
Na3 {[%clk 00:02:00]} {[%emt 00:00:12]} Na6 {[%clk 00:01:15]} {[%emt 00:00:10]}
20. Nb5 {[%clk 00:02:01]} {[%emt 00:00:02]} Rc8 {[%clk 00:01:08]} {[%emt
00:00:09]} 21. Qe2 {[%clk 00:01:57]} {[%emt 00:00:06]} hxg3 {[%clk 00:00:50]}
{[%emt 00:00:19]} 22. hxg3 {[%clk 00:01:57]} {[%emt 00:00:02]} Nb4 {[%clk
00:00:39]} {[%emt 00:00:13]} 23. Rad1 {[%clk 00:01:21]} {[%emt 00:00:39]} Nxd3
{[%clk 00:00:33]} {[%emt 00:00:08]} 24. Rxd3 {[%clk 00:01:22]} {[%emt
00:00:01]} Ba6 {[%clk 00:00:20]} {[%emt 00:00:15]} 25. Re3 {[%clk 00:01:22]}
{[%emt 00:00:02]} Re8 {[%clk 00:00:12]} {[%emt 00:00:09]} 26. Bxd5 {[%clk
00:01:10]} {[%emt 00:00:15]} Bb4 {[%clk 00:00:04]} {[%emt 00:00:10]} 27. Rxe6
{[%clk 00:01:06]} {[%emt 00:00:06]} Rxe6 {[%clk 00:00:03]} {[%emt 00:00:03]} 28.
Bxe6+ {[%clk 00:01:06]} {[%emt 00:00:03]} Ke7 {[%clk 00:00:00]} {[%emt
00:00:03]} 1-0

[Event "MČR v bleskovém šachu družstev 2019"]
[Site "Teplice, Czech Republic"]
[Date "2019.09.14"]
[Round "9.25"]
[White "Trepka, Jan"]
[Black "Soural, Jan"]
[Result "1/2-1/2"]
[TimeControl "3 mim. + 2 s"]
[WhiteFideId "322814"]
[BlackFideId "311928"]
[WhiteElo "2186"]
[BlackElo "2107"]

1. d4 {[%clk 00:03:02]} Nf6 {[%clk 00:03:03]} 2. c4 {[%clk 00:03:04]} {[%emt
00:00:01]} g6 {[%clk 00:03:05]} 3. Nc3 {[%clk 00:03:05]} d5 {[%clk 00:03:06]} 4.
cxd5 {[%clk 00:03:01]} {[%emt 00:00:06]} Nxd5 {[%clk 00:03:07]} {[%emt
00:00:01]} 5. Na4 {[%clk 00:03:03]} Nb6 {[%clk 00:03:06]} {[%emt 00:00:03]} 6.
e4 {[%clk 00:03:03]} {[%emt 00:00:02]} Bg7 {[%clk 00:03:04]} {[%emt 00:00:04]}
7. Be3 {[%clk 00:03:01]} {[%emt 00:00:04]} O-O {[%clk 00:02:56]} {[%emt
00:00:10]} 8. Nf3 {[%clk 00:03:01]} {[%emt 00:00:02]} Bg4 {[%clk 00:02:40]}
{[%emt 00:00:18]} 9. Nc5 {[%clk 00:02:53]} {[%emt 00:00:09]} Qc8 {[%clk
00:02:24]} {[%emt 00:00:18]} 10. Be2 {[%clk 00:02:45]} {[%emt 00:00:10]} N8d7
{[%clk 00:02:24]} {[%emt 00:00:01]} 11. Qc2 {[%clk 00:02:35]} {[%emt 00:00:14]}
Nxc5 {[%clk 00:02:16]} {[%emt 00:00:10]} 12. dxc5 {[%clk 00:02:34]} {[%emt
00:00:02]} Nd7 {[%clk 00:02:17]} {[%emt 00:00:01]} 13. Rc1 {[%clk 00:02:28]}
{[%emt 00:00:08]} c6 {[%clk 00:02:17]} {[%emt 00:00:01]} 14. O-O {[%clk
00:02:28]} {[%emt 00:00:02]} Qc7 {[%clk 00:02:06]} {[%emt 00:00:14]} 15. b4
{[%clk 00:02:21]} {[%emt 00:00:09]} Rfd8 {[%clk 00:01:52]} {[%emt 00:00:16]} 16.
Rfd1 {[%clk 00:02:13]} {[%emt 00:00:09]} Nf8 {[%clk 00:01:51]} {[%emt
00:00:04]} 17. Nd4 {[%clk 00:01:56]} {[%emt 00:00:19]} Bxe2 {[%clk 00:01:48]}
{[%emt 00:00:05]} 18. Nxe2 {[%clk 00:01:56]} {[%emt 00:00:02]} e5 {[%clk
00:01:45]} {[%emt 00:00:05]} 19. Qc4 {[%clk 00:01:46]} {[%emt 00:00:12]} Ne6
{[%clk 00:01:40]} {[%emt 00:00:07]} 20. a4 {[%clk 00:01:46]} {[%emt 00:00:02]}
Rxd1+ {[%clk 00:01:38]} {[%emt 00:00:04]} 21. Rxd1 {[%clk 00:01:47]} Rd8 {[%clk
00:01:39]} {[%emt 00:00:01]} 22. Rd3 {[%clk 00:01:36]} {[%emt 00:00:13]} a6
{[%clk 00:01:30]} {[%emt 00:00:11]} 23. g3 {[%clk 00:01:30]} {[%emt 00:00:08]}
Rd7 {[%clk 00:01:23]} {[%emt 00:00:09]} 24. f4 {[%clk 00:01:22]} {[%emt
00:00:10]} Qd8 {[%clk 00:01:16]} {[%emt 00:00:09]} 25. Rxd7 {[%clk 00:01:13]}
{[%emt 00:00:11]} Qxd7 {[%clk 00:01:17]} 26. Kf2 {[%clk 00:01:00]} {[%emt
00:00:16]} Nd4 {[%clk 00:01:06]} {[%emt 00:00:13]} 27. fxe5 {[%clk 00:00:47]}
{[%emt 00:00:15]} Nxe2 {[%clk 00:01:04]} {[%emt 00:00:04]} 28. e6 {[%clk
00:00:36]} {[%emt 00:00:13]} Qxe6 {[%clk 00:00:49]} {[%emt 00:00:18]} 29. Qxe6
{[%clk 00:00:37]} fxe6 {[%clk 00:00:49]} {[%emt 00:00:01]} 30. Kxe2 {[%clk
00:00:38]} Kf7 {[%clk 00:00:37]} {[%emt 00:00:14]} 31. Kd3 {[%clk 00:00:39]}
{[%emt 00:00:01]} Bb2 {[%clk 00:00:29]} {[%emt 00:00:09]} 32. Bg5 {[%clk
00:00:36]} {[%emt 00:00:06]} h5 {[%clk 00:00:25]} {[%emt 00:00:06]} 33. h3
{[%clk 00:00:36]} {[%emt 00:00:02]} e5 {[%clk 00:00:16]} {[%emt 00:00:12]} 34.
Kc4 {[%clk 00:00:37]} Ke6 {[%clk 00:00:17]} 35. g4 {[%clk 00:00:34]} {[%emt
00:00:06]} hxg4 {[%clk 00:00:18]} 36. hxg4 {[%clk 00:00:35]} Bd4 {[%clk
00:00:19]} 37. Bd8 {[%clk 00:00:32]} {[%emt 00:00:05]} Bf2 {[%clk 00:00:19]}
{[%emt 00:00:02]} 38. Bg5 {[%clk 00:00:32]} {[%emt 00:00:02]} Bg3 {[%clk
00:00:20]} {[%emt 00:00:01]} 39. Bd8 {[%clk 00:00:32]} {[%emt 00:00:02]} Bf4
{[%clk 00:00:21]} 40. Bh4 {[%clk 00:00:31]} {[%emt 00:00:03]} Bh6 {[%clk
00:00:19]} {[%emt 00:00:04]} 41. Bd8 {[%clk 00:00:32]} {[%emt 00:00:01]} Bg7
{[%clk 00:00:20]} 42. Bh4 {[%clk 00:00:32]} {[%emt 00:00:03]} Bf6 {[%clk
00:00:21]} 43. Bf2 {[%clk 00:00:33]} Bg5 {[%clk 00:00:22]} {[%emt 00:00:02]} 44.
b5 {[%clk 00:00:34]} {[%emt 00:00:01]} axb5+ {[%clk 00:00:23]} {[%emt
00:00:02]} 45. axb5 {[%clk 00:00:35]} {[%emt 00:00:01]} Kd7 {[%clk 00:00:19]}
{[%emt 00:00:05]} 1/2-1/2

[Event "MČR v bleskovém šachu družstev 2019"]
[Site "Teplice, Czech Republic"]
[Date "2019.09.14"]
[Round "9.26"]
[White "Vokoun, Jan"]
[Black "Ruzicka, Ales"]
[Result "1/2-1/2"]
[TimeControl "3 mim. + 2 s"]
[WhiteTitle "FM"]
[WhiteFideId "301647"]
[BlackFideId "325252"]
[WhiteElo "2123"]
[BlackElo "2102"]

1. Nf3 {[%clk 00:03:02]} {[%emt 00:00:02]} Nf6 {[%clk 00:03:03]} {[%emt
00:00:02]} 2. c4 {[%clk 00:03:02]} {[%emt 00:00:02]} d6 {[%clk 00:03:03]}
{[%emt 00:00:01]} 3. d4 {[%clk 00:02:57]} {[%emt 00:00:07]} g6 {[%clk
00:03:04]} {[%emt 00:00:01]} 4. Nc3 {[%clk 00:02:54]} {[%emt 00:00:05]} Bg7
{[%clk 00:03:05]} 5. g3 {[%clk 00:02:55]} O-O {[%emt 00:00:03]} 6. Bg2 Nbd7
{[%clk 00:03:04]} {[%emt 00:00:03]} 7. O-O {[%clk 00:02:54]} {[%emt 00:00:05]}
Re8 {[%clk 00:03:05]} 8. Qc2 {[%clk 00:02:47]} {[%emt 00:00:09]} e5 {[%clk
00:03:05]} {[%emt 00:00:01]} 9. a4 {[%clk 00:02:31]} {[%emt 00:00:18]} a6
{[%clk 00:03:00]} {[%emt 00:00:07]} 10. a5 {[%clk 00:02:22]} {[%emt 00:00:12]}
exd4 {[%clk 00:02:56]} {[%emt 00:00:06]} 11. Nxd4 {[%clk 00:02:23]} Ne5 {[%clk
00:02:57]} {[%emt 00:00:01]} 12. b3 {[%clk 00:02:18]} {[%emt 00:00:07]} Rb8
{[%clk 00:02:55]} {[%emt 00:00:03]} 13. Rd1 {[%clk 00:02:07]} {[%emt 00:00:14]}
Bd7 {[%clk 00:02:55]} {[%emt 00:00:02]} 14. Ba3 {[%clk 00:01:57]} {[%emt
00:00:12]} Nc6 {[%clk 00:02:49]} {[%emt 00:00:07]} 15. Nxc6 {[%clk 00:01:35]}
{[%emt 00:00:25]} Bxc6 {[%clk 00:02:49]} 16. Rac1 {[%clk 00:01:27]} {[%emt
00:00:10]} Bxg2 {[%clk 00:02:48]} {[%emt 00:00:03]} 17. Kxg2 {[%clk 00:01:29]}
Qe7 {[%clk 00:02:45]} {[%emt 00:00:06]} 18. e3 {[%clk 00:01:18]} {[%emt
00:00:13]} Ne4 {[%clk 00:02:44]} {[%emt 00:00:03]} 19. Nxe4 {[%clk 00:00:58]}
{[%emt 00:00:22]} Qxe4+ {[%clk 00:02:44]} {[%emt 00:00:02]} 20. Qxe4 {[%clk
00:00:59]} Rxe4 {[%clk 00:02:44]} {[%emt 00:00:03]} 21. Rd5 {[%clk 00:00:52]}
{[%emt 00:00:09]} Re5 {[%clk 00:02:34]} {[%emt 00:00:11]} 22. Bb4 {[%clk
00:00:45]} {[%emt 00:00:09]} Rbe8 {[%clk 00:02:31]} {[%emt 00:00:05]} 23. Rxe5
{[%clk 00:00:31]} {[%emt 00:00:17]} Bxe5 {[%emt 00:00:13]} 24. f4 {[%emt
00:00:03]} Bf6 {[%emt 00:00:03]} 25. Kf3 1/2-1/2

[Event "MČR v bleskovém šachu družstev 2019"]
[Site "Teplice, Czech Republic"]
[Date "2019.09.14"]
[Round "9.27"]
[White "Loskot, Petr"]
[Black "Postupa, Martin"]
[Result "1-0"]
[TimeControl "3 mim. + 2 s"]
[WhiteFideId "319570"]
[BlackFideId "325210"]
[WhiteElo "2010"]
[BlackElo "1958"]

1. e4 {[%clk 00:03:03]} e5 {[%clk 00:03:04]} {[%emt 00:00:01]} 2. Nf3 {[%clk
00:03:04]} Nc6 {[%clk 00:03:05]} 3. Nc3 {[%clk 00:03:04]} {[%emt 00:00:03]} Bc5
{[%clk 00:03:06]} {[%emt 00:00:02]} 4. Nxe5 {[%clk 00:03:02]} {[%emt 00:00:03]}
Bxf2+ {[%clk 00:03:04]} {[%emt 00:00:03]} 5. Kxf2 {[%clk 00:03:02]} {[%emt
00:00:02]} Nxe5 {[%clk 00:03:05]} 6. d4 {[%clk 00:03:03]} {[%emt 00:00:02]} Ng6
{[%clk 00:03:06]} {[%emt 00:00:01]} 7. Qf3 {[%clk 00:02:59]} {[%emt 00:00:06]}
d6 {[%clk 00:03:03]} {[%emt 00:00:05]} 8. h3 {[%clk 00:02:58]} {[%emt
00:00:04]} h6 {[%clk 00:03:03]} {[%emt 00:00:02]} 9. Bc4 {[%clk 00:02:56]}
{[%emt 00:00:03]} Qe7 {[%clk 00:02:58]} {[%emt 00:00:06]} 10. Rf1 {[%clk
00:02:57]} {[%emt 00:00:02]} Nf6 {[%clk 00:02:56]} {[%emt 00:00:04]} 11. Kg1
{[%clk 00:02:53]} {[%emt 00:00:05]} O-O {[%clk 00:02:57]} {[%emt 00:00:02]} 12.
Bxh6 {[%clk 00:02:49]} {[%emt 00:00:07]} gxh6 {[%clk 00:02:23]} {[%emt
00:00:35]} 13. Qxf6 {[%clk 00:02:49]} {[%emt 00:00:02]} Qxf6 {[%clk 00:02:23]}
{[%emt 00:00:02]} 14. Rxf6 {[%clk 00:02:50]} Kg7 {[%clk 00:02:25]} 15. Raf1
{[%clk 00:02:50]} {[%emt 00:00:02]} Nh8 {[%clk 00:02:19]} {[%emt 00:00:08]} 16.
Nb5 {[%clk 00:02:33]} {[%emt 00:00:19]} Bd7 {[%clk 00:02:11]} {[%emt 00:00:10]}
17. a4 {[%clk 00:02:15]} {[%emt 00:00:20]} Bxb5 {[%clk 00:02:02]} {[%emt
00:00:11]} 18. axb5 {[%clk 00:02:15]} {[%emt 00:00:02]} Rae8 {[%clk 00:01:59]}
{[%emt 00:00:03]} 19. Bd5 {[%clk 00:02:14]} {[%emt 00:00:04]} b6 {[%clk
00:01:57]} {[%emt 00:00:05]} 20. R6f3 {[%clk 00:02:11]} {[%emt 00:00:04]} Re7
{[%clk 00:01:50]} {[%emt 00:00:10]} 21. Ra1 {[%clk 00:02:12]} {[%emt 00:00:01]}
f5 {[%clk 00:01:47]} {[%emt 00:00:05]} 22. exf5 {[%clk 00:01:59]} {[%emt
00:00:15]} Kf6 {[%clk 00:01:48]} {[%emt 00:00:01]} 23. Rxa7 {[%clk 00:01:58]}
{[%emt 00:00:03]} Rfe8 {[%clk 00:01:46]} {[%emt 00:00:03]} 24. Be6 {[%clk
00:01:55]} {[%emt 00:00:06]} Nf7 {[%clk 00:01:46]} {[%emt 00:00:03]} 25. h4
{[%clk 00:01:53]} {[%emt 00:00:04]} Rg8 {[%clk 00:01:39]} {[%emt 00:00:08]} 26.
Kh2 {[%clk 00:01:53]} {[%emt 00:00:02]} Rg4 {[%clk 00:01:38]} {[%emt 00:00:02]}
27. c3 {[%clk 00:01:54]} {[%emt 00:00:02]} h5 {[%clk 00:01:39]} {[%emt
00:00:01]} 28. Kh3 {[%clk 00:01:49]} {[%emt 00:00:07]} Nd8 {[%clk 00:01:39]}
{[%emt 00:00:03]} 29. d5 {[%clk 00:01:47]} {[%emt 00:00:03]} Reg7 {[%clk
00:01:33]} {[%emt 00:00:08]} 30. g3 {[%clk 00:01:47]} {[%emt 00:00:03]} Re4
{[%clk 00:01:32]} {[%emt 00:00:02]} 31. Ra8 {[%clk 00:01:45]} {[%emt 00:00:04]}
Nxe6 {[%clk 00:01:25]} {[%emt 00:00:10]} 32. fxe6+ {[%clk 00:01:45]} {[%emt
00:00:01]} Ke5 {[%clk 00:01:22]} {[%emt 00:00:05]} 33. Rf7 {[%clk 00:01:32]}
{[%emt 00:00:14]} Rgg4 {[%clk 00:01:23]} {[%emt 00:00:02]} 34. e7 {[%clk
00:01:33]} {[%emt 00:00:02]} Kxd5 {[%clk 00:01:18]} {[%emt 00:00:06]} 35. e8=Q
{[%clk 00:01:33]} {[%emt 00:00:02]} Rxe8 {[%clk 00:01:15]} {[%emt 00:00:05]} 36.
Rxe8 {[%clk 00:01:33]} {[%emt 00:00:02]} Kc4 {[%clk 00:01:16]} {[%emt
00:00:01]} 37. Rf4+ {[%clk 00:01:33]} {[%emt 00:00:02]} Rxf4 {[%clk 00:01:14]}
{[%emt 00:00:04]} 38. gxf4 {[%clk 00:01:35]} Kxb5 {[%clk 00:01:15]} 39. Re4
{[%emt 00:00:03]} c5 {[%clk 00:01:13]} {[%emt 00:00:01]} 40. f5 {[%clk
00:01:37]} d5 {[%clk 00:01:14]} {[%emt 00:00:01]} 41. Rf4 {[%clk 00:01:38]}
{[%emt 00:00:01]} d4 {[%clk 00:01:15]} {[%emt 00:00:01]} 42. cxd4 {[%clk
00:01:39]} c4 {[%clk 00:01:16]} 43. f6 {[%emt 00:00:01]} Kb4 44. Rf3 {[%clk
00:01:40]} Ka4 {[%clk 00:01:18]} {[%emt 00:00:02]} 45. f7 {[%clk 00:01:41]} b5
{[%clk 00:01:19]} {[%emt 00:00:01]} 46. f8=Q {[%clk 00:01:42]} b4 {[%clk
00:01:20]} 47. Qa8+ {[%clk 00:01:42]} {[%emt 00:00:01]} Kb5 {[%clk 00:01:22]}
48. Rf5+ {[%clk 00:01:43]} Kb6 {[%clk 00:01:23]} {[%emt 00:00:01]} 49. Qb8+
{[%clk 00:01:43]} {[%emt 00:00:02]} Kc6 {[%clk 00:01:24]} {[%emt 00:00:01]} 50.
Qb5+ {[%clk 00:01:43]} {[%emt 00:00:02]} Kd6 {[%clk 00:01:25]} {[%emt
00:00:01]} 51. Qb6+ {[%clk 00:01:44]} {[%emt 00:00:02]} Ke7 {[%clk 00:01:26]}
52. Qf6+ {[%clk 00:01:44]} {[%emt 00:00:01]} Kd7 {[%clk 00:01:27]} {[%emt
00:00:01]} 53. Rd5+ {[%clk 00:01:45]} {[%emt 00:00:01]} Kc7 {[%clk 00:01:29]}
{[%emt 00:00:02]} 54. Qd6+ {[%clk 00:01:46]} Kb7 {[%clk 00:01:30]} 55. Rb5+
{[%clk 00:01:47]} 1-0